{"text_format":"1","workbook":"xlsx","n_sheets":2,"sheets":["Torony","Értékkészletek"],"not_rendered":{"charts":0,"images":0,"macros":1,"external_links":0,"defined_names":0,"comments":0,"pivot_tables":0},"unopened":[],"bounds":{"document_bytes":16777216,"sheet_cells":100000,"rows_first":2000,"rows_last":500,"rows_between":2000,"halvings":0,"cell_chars":16384,"cell_head_chars":4096},"cells_cut":0,"cells_raw":0,"read":"whole","date_system":"1900"}

{"sheet":"Torony","index":0,"n_rows":53,"n_cols":11,"rows_kept":53,"cut":false,"hidden":false,"merged":[[12,1,12,2],[2,1,2,2],[3,1,3,2],[4,1,4,2],[5,1,5,2],[6,1,6,2],[7,1,7,2],[8,1,8,2],[9,1,9,2],[10,1,10,2],[11,1,11,2],[29,1,29,2],[13,1,13,2],[14,1,14,2],[15,1,15,2],[20,1,20,2],[21,1,21,2],[22,1,22,2],[39,1,39,2],[16,0,19,3],[34,0,36,3],[0,0,0,3],[1,0,1,3],[30,1,30,2],[31,1,31,2],[32,1,32,2],[33,1,33,2],[37,1,37,2],[38,1,38,2],[24,1,24,2],[25,1,25,2],[27,1,27,2],[26,1,26,2],[28,1,28,2]]}
["Torony xml előállító",null,null,null,null,null,null,"<?xml version=\"1.0\" encoding=\"UTF-8\" standalone=\"no\"?>",null,null,{"$f":"H1","v":"<?xml version=\"1.0\" encoding=\"UTF-8\" standalone=\"no\"?>"}]
["Terv alapadatok",null,null,null,null,null,null,"<terv xmlns=\"http://hk.nmhh.hu/schemas/terv-eho\">",null,null,{"$f":"H2","v":"<terv xmlns=\"http://hk.nmhh.hu/schemas/terv-eho\">"}]
["EHO verzió","1.3.0",null,null,null,null,null,"<eho_verzió>",{"$f":"B3","v":"1.3.0"},"</eho_verzió>",{"$f":"CONCATENATE(H3,I3,J3)","v":"<eho_verzió>1.3.0</eho_verzió>"}]
["Terv azonosító",1234567899,null,null,null,null,null,"<terv_azonosító>",{"$f":"B4","v":1234567899},"</terv_azonosító>",{"$f":"CONCATENATE(H4,I4,J4)","v":"<terv_azonosító>1234567899</terv_azonosító>"}]
["Terv típusa","építési",null,null,null,null,null,"<terv_típusa>","építési","</terv_típusa>","<terv_típusa>építési</terv_típusa>"]
["Terv megnevezése","Teszt",null,null,null,null,null,"<terv_megnevezése>","Teszt","</terv_megnevezése>","<terv_megnevezése>Teszt</terv_megnevezése>"]
["EOV koordináták\n(Automatikusan a Torony pozíciójához képesti 4mx4m-es téglalap)",{"$f":"F26","v":"622712.02 109367.45 622712.02 109371.45 622708.02 109371.45 622708.02 109367.45 622712.02 109367.45"},null,null,null,null,null,"<eov_koordináták><poligon>","622712.02 109367.45 622712.02 109371.45 622708.02 109371.45 622708.02 109367.45 622712.02 109367.45","</poligon></eov_koordináták>","<eov_koordináták><poligon>622712.02 109367.45 622712.02 109371.45 622708.02 109371.45 622708.02 109367.45 622712.02 109367.45</poligon></eov_koordináták>"]
["Tervező neve","Teszt Elek",null,null,null,null,null,"<tervező_neve>","Teszt Elek","</tervező_neve>","<tervező_neve>Teszt Elek</tervező_neve>"]
["Tervező jogosultsága","HI-V",null,null,null,null,null,"<tervező_jogosultsága>","HI-V","</tervező_jogosultsága>","<tervező_jogosultsága>HI-V</tervező_jogosultsága>"]
["Tervező kamarai száma","17-0552",null,null,null,null,null,"<tervező_kamarai_száma>","17-0552","</tervező_kamarai_száma>","<tervező_kamarai_száma>17-0552</tervező_kamarai_száma>"]
["Tervező e-mail címe","nincs@neki.hu",null,null,null,null,null,"<tervező_e-mail_címe>","nincs@neki.hu","</tervező_e-mail_címe>","<tervező_e-mail_címe>nincs@neki.hu</tervező_e-mail_címe>"]
["Építtető adóazonosító","12345678-1-12",null,null,null,null,null,"<építtető_adóazonosító>","12345678-1-12","</építtető_adóazonosító>","<építtető_adóazonosító>12345678-1-12</építtető_adóazonosító>"]
["Kapcsolódó engedély száma","nincs",null,null,null,null,null,"<kapcsolódó_engedély_száma>","nincs","</kapcsolódó_engedély_száma>","<kapcsolódó_engedély_száma>nincs</kapcsolódó_engedély_száma>"]
["Tervező program neve","eT",null,null,null,null,null,"<tervező_program_neve>","eT","</tervező_program_neve>","<tervező_program_neve>eT</tervező_program_neve>"]
["Tervező program verziója","3.0",null,null,null,null,null,"<tervező_program_verziója>","3.0","</tervező_program_verziója>","<tervező_program_verziója>3.0</tervező_program_verziója>"]
["e-Napló","nincs",null,null,null,null,null,"<e_napló>","nincs","</e_napló>","<e_napló>nincs</e_napló>"]
["Torony objektum adatai",null,null,null,null,null,null,"<eho_objektumok>",null,null,{"$f":"H17","v":"<eho_objektumok>"}]
[null,null,null,null,null,null,null,"<objektumok>",null,null,{"$f":"H18","v":"<objektumok>"}]
[null,null,null,null,null,null,null,"<torony>",null,null,"<torony>"]
[null,null,null,null,{"$f":"B24+2","v":622712.02},{"$f":"C24-2","v":109367.45},{"$f":"CONCATENATE(E20,\" \",F20)","v":"622712.02 109367.45"},"<azonosító>",{"$f":"B21","v":"12345678991"},"</azonosító>",{"$f":"CONCATENATE(H20,I20,J20)","v":"<azonosító>12345678991</azonosító>"}]
["Eho azonosító",{"$f":"CONCATENATE(B22,1)","v":"12345678991"},null,null,{"$f":"B24+2","v":622712.02},{"$f":"C24+2","v":109371.45},{"$f":"CONCATENATE(E21,\" \",F21)","v":"622712.02 109371.45"},"<eho_azonosító>",{"$f":"B21","v":"12345678991"},"</eho_azonosító>","<eho_azonosító>12345678991</eho_azonosító>"]
["Terv azonosító",{"$f":"B4","v":1234567899},null,null,{"$f":"B24-2","v":622708.02},{"$f":"C24+2","v":109371.45},"622708.02 109371.45","<terv_azonosító>",{"$f":"B22","v":1234567899},"</terv_azonosító>","<terv_azonosító>1234567899</terv_azonosító>"]
["Tervezési státusz","Tervezett",null,null,{"$f":"B24-2","v":622708.02},{"$f":"C24-2","v":109367.45},"622708.02 109367.45","<tervezési_státusz>","Tervezett","</tervezési_státusz>","<tervezési_státusz>Tervezett</tervezési_státusz>"]
["EOV koordináták (y,x)",622710.02,109369.45,null,null,null,null,"<eov_koordináták>",null,null,{"$f":"CONCATENATE(H24,I24,J24)","v":"<eov_koordináták>"}]
["Szolgáltatói azonosító","Teszt 1",null,null,null,{"$f":"CONCATENATE(G20,\" \",G21,\" \",G22)","v":"622712.02 109367.45 622712.02 109371.45 622708.02 109371.45"},null,"<pont>",{"$f":"CONCATENATE(B24,\" \",C24)","v":"622710.02 109369.45"},"</pont>",{"$f":"CONCATENATE(H25,I25,J25)","v":"<pont>622710.02 109369.45</pont>"}]
["Objektum státusz","Tervezett",null,null,null,{"$f":"CONCATENATE(F25,\" \",G23,\" \",G20)","v":"622712.02 109367.45 622712.02 109371.45 622708.02 109371.45 622708.02 109367.45 622712.02 109367.45"},null,null,null,"</eov_koordináták>",{"$f":"CONCATENATE(H26,I26,J26)","v":"</eov_koordináták>"}]
["Orientáció",90,null,null,null,null,null,"<szolgáltatói_azonosító>",{"$f":"B25","v":"Teszt 1"},"</szolgáltatói_azonosító>",{"$f":"CONCATENATE(H27,I27,J27)","v":"<szolgáltatói_azonosító>Teszt 1</szolgáltatói_azonosító>"}]
["Engedélyes","Igen",null,null,null,null,null,"<objektum_státusz>","Tervezett","</objektum_státusz>","<objektum_státusz>Tervezett</objektum_státusz>"]
["Engedély szám","t1",null,null,null,null,null,"<orientáció>",90,"</orientáció>","<orientáció>90</orientáció>"]
["EOMA",0,null,null,null,null,null,"<engedélyes>","Igen","</engedélyes>","<engedélyes>Igen</engedélyes>"]
["Eközmű adatszolgáltatási szint","Tájékoztató",null,null,null,null,null,"<engedély_szám>","t1","</engedély_szám>","<engedély_szám>t1</engedély_szám>"]
["Eközmű adatelőállítás módja","Nyílt árkos bemérés",null,null,null,null,null,"<eoma>",0,"</eoma>","<eoma>0</eoma>"]
["Beépítés éve",2022,null,null,null,null,null,"<eközmű_adatszolgáltatási_szint>","Tájékoztató","</eközmű_adatszolgáltatási_szint>","<eközmű_adatszolgáltatási_szint>Tájékoztató</eközmű_adatszolgáltatási_szint>"]
["Magasság",12,null,null,null,null,null,"<eközmű_adatelőállítás_módja>","Nyílt árkos bemérés","</eközmű_adatelőállítás_módja>","<eközmű_adatelőállítás_módja>Nyílt árkos bemérés</eközmű_adatelőállítás_módja>"]
["Tulajdonos objektum adatai",null,null,null,null,null,null,"<beépítés_éve>",2022,"</beépítés_éve>","<beépítés_éve>2022</beépítés_éve>"]
[null,null,null,null,null,null,null,"<magasság>",12,"</magasság>","<magasság>12</magasság>"]
[null,null,null,null,null,null,null,"</torony>",null,null,{"$f":"H37","v":"</torony>"}]
["Megnevezés","Teszt Bt.",null,null,null,null,null,"<szereplő>",null,null,"<szereplő>"]
["Adószám","12345678-1-12",null,null,null,null,null,"<azonosító>",2,"</azonosító>",{"$f":"CONCATENATE(H39,I39,J39)","v":"<azonosító>2</azonosító>"}]
["Szereplő Típus","gazdasági társaság",null,null,null,null,null,"<megnevezés>",{"$f":"B38","v":"Teszt Bt."},"</megnevezés>","<megnevezés>Teszt Bt.</megnevezés>"]
[null,null,null,null,null,null,null,"<adószám>",{"$f":"B39","v":"12345678-1-12"},"</adószám>","<adószám>12345678-1-12</adószám>"]
[null,null,null,null,null,null,null,"<szereplo_tipus>",{"$f":"B40","v":"gazdasági társaság"},"</szereplo_tipus>","<szereplo_tipus>gazdasági társaság</szereplo_tipus>"]
[null,null,null,null,null,null,null,"</szereplő>",null,null,{"$f":"H43","v":"</szereplő>"}]
[null,null,null,null,null,null,null,"</objektumok>",null,null,"</objektumok>"]
[null,null,null,null,null,null,null,"<kapcsolatok>",null,null,"<kapcsolatok>"]
[null,null,null,null,null,null,null,"<felelős>",null,null,"<felelős>"]
[null,null,null,null,null,null,null,"<kiinduló_objektum>",{"$f":"I39","v":2},"</kiinduló_objektum>",{"$f":"CONCATENATE(H47,I47,J47)","v":"<kiinduló_objektum>2</kiinduló_objektum>"}]
[null,null,null,null,null,null,null,"<vég_objektum>",{"$f":"I20","v":"12345678991"},"</vég_objektum>","<vég_objektum>12345678991</vég_objektum>"]
[null,null,null,null,null,null,null,"<tulajdonos>",100,"</tulajdonos>","<tulajdonos>100</tulajdonos>"]
[null,null,null,null,null,null,null,"</felelős>",null,null,"</felelős>"]
[null,null,null,null,null,null,null,"</kapcsolatok>",null,null,"</kapcsolatok>"]
[null,null,null,null,null,null,null,"</eho_objektumok>",null,null,"</eho_objektumok>"]
[null,null,null,null,null,null,null,"</terv>",null,null,"</terv>"]

{"sheet":"Értékkészletek","index":1,"n_rows":7,"n_cols":7,"rows_kept":7,"cut":false,"hidden":false,"merged":[]}
["építési","Tervezett","Selejtezett","Igen","Tájékoztató","Nyílt árkos bemérés","állam"]
["használatbavételi","Újonnan megépített","Bontott","1990 előtti","Kivitelezési","Utólagos méréssel közvetlenül","önkormányzat"]
["fennmaradási","Meglévő saját","Üzemelő","Bérelt","Tervezési","Meglévő állományból szerkesztéssel utólagos beméréssel korrigált","gazdasági társaság"]
["bontási","Meglévő bérelt","Üzemen kívüli","Nem ismert",null,"Meglévő állományból szerkesztéssel"]
[null,"Bontandó","Távlati terv"]
[null,"Bontott","Tervezett"]
[null,null,"Bontandó"]